bitfinex/quotes_BTCUSD_20240810
["timestamp","ask_amount","ask_price","bid_price","bid_amount"]
[1723250462306,0.009,60757.0,60751.0,0.0518837]
[1723250462307,0.006,60752.0,60751.0,0.0518837]
[1723250462440,0.009,60757.0,60752.0,0.1012]
[1723250462639,0.009,60757.0,60756.0,0.164592]
[1723250462943,0.015,60757.0,60756.0,0.92745341]
[1723250463170,0.32918,60757.0,60756.0,0.1012]
[1723250463420,0.32918,60757.0,60753.0,0.03243302]
[1723250463421,0.006,60752.0,60751.0,0.001]
[1723250463608,0.49981,60752.0,60751.0,0.001]
[1723250464243,0.006,60752.0,60751.0,0.001]
[1723250464468,0.006,60752.0,60751.0,0.07030403]
[1723250464971,0.164608,60751.0,60748.0,0.1012]
[1723250465164,0.006,60757.0,60748.0,0.1012]
[1723250465389,0.170592,60757.0,60748.0,0.1012]
[1723250465608,0.164588,60758.0,60753.0,0.1646]
[1723250466293,0.16459,60757.0,60752.0,0.16789458]
[1723250466498,0.006,60757.0,60753.0,0.22452916]
[1723250466703,0.164587,60758.0,60754.0,0.164597]
[1723250466912,0.16458,60761.0,60756.0,0.164591]
[1723250467068,0.49296492,60763.0,60756.0,0.164591]
[1723250467069,0.264582,60760.0,60757.0,0.05537162]
[1723250467255,0.429165,60760.0,60757.0,0.05537162]
[1723250467500,0.1,60760.0,60755.0,0.164594]
[1723250467702,0.164584,60759.0,60756.0,0.1012]
[1723250468095,0.329159,60761.0,60756.0,0.1012]
[1723250468096,0.170588,60758.0,60756.0,0.1012]
[1723250468299,0.329166,60760.0,60756.0,0.1012]
[1723250468662,0.330008,60758.0,60750.0,0.164606]
[1723250468864,0.164591,60757.0,60749.0,0.329221]
[1723250469071,0.165419,60758.0,60754.0,0.265796]
[1723250469505,0.0843,60756.0,60745.0,0.3628163]
[1723250469710,0.32922,60750.0,60745.0,0.3628163]
[1723250469882,0.16381492,60750.0,60745.0,0.3628163]
[1723250470111,0.16381492,60750.0,60736.0,0.417688]
[1723250470112,0.329234,60747.0,60740.0,0.1012]
[1723250470239,0.164623,60745.0,60740.0,0.265835]
[1723250470439,0.164626,60744.0,60740.0,0.265835]
[1723250470641,0.329234,60747.0,60741.0,0.164633]
[1723250470642,0.164621,60746.0,60741.0,0.164633]
[1723250470847,0.164622,60745.0,60742.0,0.0265833]
[1723250471055,0.329234,60747.0,60742.0,0.0265833]
[1723250471056,0.164625,60744.0,60742.0,0.0265833]
[1723250471253,0.164628,60743.0,60742.0,0.0265833]
[1723250471477,0.164633,60741.0,60740.0,0.1012]
[1723250471919,0.65771392,60741.0,60740.0,0.01]
[1723250472119,1.17127992,60741.0,60740.0,0.01]
[1723250472345,1.50054592,60741.0,60740.0,0.01]
[1723250472663,1.83981192,60741.0,60740.0,0.024]
[1723250472865,2.01558355,60741.0,60740.0,0.024]
[1723250473016,2.34066232,60741.0,60740.0,0.024]
[1723250473213,2.17651262,60741.0,60740.0,0.014]
[1723250473677,2.17751262,60741.0,60740.0,0.025]
[1723250473832,1.84824662,60741.0,60740.0,0.025]
[1723250474188,1.84824662,60741.0,60730.0,0.164662]
[1723250474189,0.164651,60735.0,60730.0,0.164662]
[1723250474393,0.34811492,60741.0,60730.0,0.164662]
[1723250474394,0.014,60741.0,60737.0,0.164642]
[1723250474594,0.014,60741.0,60740.0,0.001]
[1723250474595,0.021,60741.0,60740.0,0.001]
[1723250474734,0.014,60741.0,60740.0,0.164636]
[1723250474942,0.164628,60743.0,60739.0,0.164637]
[1723250475141,0.008,60741.0,60740.0,0.001]
[1723250475364,0.013,60741.0,60740.0,0.001]
[1723250475560,0.67071392,60741.0,60740.0,0.001]
[1723250475809,1.33724592,60741.0,60740.0,0.002]
[1723250476060,1.32924592,60741.0,60740.0,0.001]
[1723250476213,1.51354592,60741.0,60740.0,0.001]
[1723250476738,1.51354592,60741.0,60730.0,0.1012]
[1723250476739,0.493981,60731.0,60730.0,0.1012]
[1723250476932,0.65779592,60731.0,60730.0,0.1012]
[1723250477689,0.98711692,60731.0,60730.0,0.1012]
[1723250477893,0.98711692,60731.0,60724.0,0.1012]
[1723250477894,0.164678,60725.0,60724.0,0.1012]
[1723250478142,0.164676,60725.0,60724.0,0.1012]
[1723250478357,0.494029,60725.0,60724.0,0.1012]
[1723250478533,0.164676,60725.0,60724.0,0.1012]
[1723250479136,0.494029,60725.0,60724.0,0.1042]
[1723250479333,0.164676,60725.0,60724.0,0.1042]
[1723250479612,0.494029,60725.0,60724.0,0.11462]
[1723250479811,0.16381492,60731.0,60724.0,0.11462]
[1723250480014,0.00897802,60740.0,60724.0,0.11462]
[1723250480015,0.32849092,60725.0,60724.0,0.003]
[1723250480212,0.32849092,60725.0,60724.0,0.009]
[1723250480213,0.41129092,60725.0,60724.0,0.009]
[1723250480416,0.41129092,60725.0,60724.0,0.006]
[1723250480417,1.23837853,60725.0,60724.0,0.006]
[1723250480728,1.23837853,60725.0,60710.0,0.1111]
[1723250480729,0.49411,60715.0,60710.0,0.1111]
[1723250480928,0.98733192,60715.0,60710.0,0.1111]
[1723250482052,0.98733192,60715.0,60714.0,0.0149152]
[1723250482053,1.31773892,60715.0,60714.0,0.0149152]
[1723250482353,1.48513636,60715.0,60714.0,0.0009152]
[1723250482561,1.41673892,60715.0,60714.0,0.0009152]
[1723250483178,1.48513319,60715.0,60714.0,0.0009152]
[1723250483374,1.08733192,60715.0,60714.0,0.0009152]
[1723250483523,1.08733192,60715.0,60714.0,0.1230152]
[1723250483524,0.49511,60715.0,60714.0,0.1230152]
[1723250483728,0.49611,60715.0,60714.0,0.14541846]
[1723250483931,0.824517,60715.0,60714.0,0.13541846]
[1723250484134,0.823517,60715.0,60714.0,0.12541846]
[1723250484331,0.836517,60715.0,60714.0,0.12541846]
[1723250485427,0.177703,60715.0,60714.0,0.12541846]
[1723250485631,0.013,60715.0,60714.0,0.37202446]
[1723250485834,0.013,60715.0,60714.0,0.70143746]
[1723250486033,0.013,60715.0,60714.0,1.03085046]
[1723250486334,0.008,60715.0,60714.0,1.78569468]
[1723250486690,0.008,60715.0,60714.0,1.79669468]
[1723250486894,0.0818,60742.0,60714.0,1.79669468]
[1723250486895,0.329269,60741.0,60727.0,0.1111]
[1723250487098,0.164661,60731.0,60728.0,0.1259461]
[1723250487298,0.493996,60729.0,60728.0,0.0440461]
[1723250487923,0.164665,60729.0,60728.0,0.0440461]
[1723250488139,0.329331,60729.0,60728.0,0.0440461]
[1723250488342,0.493996,60729.0,60728.0,0.0480461]
[1723250489112,0.493996,60729.0,60728.0,0.0440461]
[1723250489846,0.493996,60729.0,60724.0,0.2616163]
[1723250489847,0.494029,60725.0,60724.0,0.2616163]
[1723250490042,0.494029,60725.0,60722.0,0.1111]
[1723250490043,0.329353,60725.0,60722.0,0.1111]
[1723250490255,0.329343,60727.0,60722.0,0.1111]
[1723250490410,0.164677,60725.0,60722.0,0.1111]
[1723250490619,0.0818,60741.0,60723.0,0.0605171]
[1723250490816,0.164666,60729.0,60724.0,0.164678]
[1723250491019,0.004,60729.0,60723.0,0.0605171]
[1723250491382,0.1,60732.0,60726.0,0.164673]
[1723250491607,0.164663,60730.0,60726.0,0.164673]
[1723250491792,0.164663,60730.0,60727.0,0.04525458]
[1723250491988,0.264658,60732.0,60727.0,0.20992458]
[1723250492194,0.16381492,60740.0,60728.0,0.440435]
[1723250492422,0.164648,60736.0,60728.0,0.440435]
[1723250492637,0.164648,60736.0,60731.0,0.164659]
[1723250492836,0.164649,60735.0,60732.0,0.07292036]
[1723250493496,0.01,60756.0,60732.0,0.07292036]
[1723250493497,0.000832,60752.0,60734.0,0.1111]
[1723250493694,0.329212,60751.0,60735.0,0.00102433]
[1723250493918,0.000832,60752.0,60735.0,0.00102433]
[1723250493919,0.16462,60746.0,60743.0,0.1111]
[1723250494143,0.164617,60747.0,60744.0,0.0605006]
[1723250494504,0.16462,60746.0,60744.0,0.0605006]
[1723250494803,0.164622,60745.0,60744.0,0.0605006]
[1723250495016,0.004,60751.0,60743.0,0.1111]
[1723250495341,0.329224,60749.0,60743.0,0.1111]
[1723250495529,0.004,60751.0,60743.0,0.1111]
[1723250495530,0.164625,60744.0,60743.0,0.1111]
[1723250496483,0.493875,60744.0,60743.0,0.1111]
[1723250496935,0.329247,60745.0,60736.0,0.5373623]
[1723250497151,0.164633,60741.0,60737.0,0.164643]
[1723250497355,0.164626,60744.0,60739.0,0.164638]
[1723250497560,0.164628,60743.0,60739.0,0.164637]
[1723250497781,0.164625,60745.0,60740.0,0.01730609]
[1723250497984,0.164625,60745.0,60741.0,0.164633]
[1723250498437,0.16462,60746.0,60741.0,0.164633]
[1723250498645,0.000832,60752.0,60745.0,0.1111]
[1723250498866,0.16461,60750.0,60746.0,0.01143924]
[1723250499070,0.164606,60751.0,60746.0,0.01143924]
[1723250499281,0.000832,60752.0,60746.0,0.17605724]
[1723250499495,0.164609,60750.0,60746.0,0.17605724]
[1723250499697,0.330041,60752.0,60747.0,0.06164142]
[1723250499895,0.164609,60750.0,60747.0,0.06164142]
[1723250500127,0.330041,60752.0,60747.0,0.06164142]
[1723250500128,0.164611,60749.0,60747.0,0.06164142]
[1723250500501,0.164614,60748.0,60747.0,0.06164142]
[1723250500704,0.164611,60750.0,60747.0,0.06164142]
[1723250500906,0.005832,60752.0,60748.0,0.01841807]
[1723250501067,0.005832,60752.0,60751.0,0.595118]
[1723250501444,0.000832,60752.0,60751.0,0.92433]
[1723250501970,0.000832,60752.0,60751.0,1.1879463]
[1723250502174,0.000832,60752.0,60751.0,1.35176122]
[1723250502378,0.000832,60752.0,60751.0,1.71178258]
[1723250502610,0.000832,60752.0,60751.0,1.79768258]
[1723250503028,0.000832,60752.0,60751.0,1.81768258]
[1723250503222,0.000832,60758.0,60757.0,1.34933]
[1723250503514,0.000832,60758.0,60757.0,2.14656122]
[1723250503720,0.000832,60758.0,60757.0,2.16586731]
[1723250503920,0.000832,60758.0,60757.0,1.61825239]
[1723250504146,0.000832,60758.0,60757.0,1.78206731]
[1723250504348,0.000832,60758.0,60757.0,1.79406731]
[1723250504975,0.000832,60758.0,60757.0,2.17186731]
[1723250505250,0.001832,60758.0,60757.0,2.51404731]
[1723250505638,0.000832,60758.0,60757.0,2.50104731]
[1723250505880,0.000832,60758.0,60757.0,2.17186731]
[1723250506257,0.000832,60758.0,60757.0,2.14386731]
[1723250506574,0.000832,60758.0,60757.0,2.15786731]
[1723250507003,0.000832,60758.0,60757.0,2.50704731]
[1723250507204,0.001832,60758.0,60757.0,2.52004731]
[1723250507457,0.001832,60758.0,60757.0,2.52204731]
[1723250507828,0.001832,60758.0,60757.0,2.17086731]
[1723250508033,0.001832,60758.0,60757.0,2.16086731]
[1723250509035,0.001832,60758.0,60757.0,1.80906731]
[1723250509409,0.001832,60758.0,60757.0,0.90099239]
[1723250510061,0.001832,60758.0,60757.0,1.23017239]
[1723250510294,0.000832,60758.0,60757.0,1.20317239]
[1723250510712,0.001832,60758.0,60757.0,0.62837609]
[1723250510902,0.001832,60758.0,60757.0,0.29219609]
[1723250511076,0.001832,60758.0,60757.0,0.01730609]
[1723250511077,0.000832,60758.0,60757.0,0.01730609]
[1723250511308,0.000832,60758.0,60757.0,0.02430609]
[1723250511516,0.001832,60758.0,60757.0,0.02730609]
[1723250511965,0.000832,60758.0,60757.0,0.01730609]
[1723250512778,0.165419,60758.0,60757.0,0.01730609]
[1723250512943,0.165419,60758.0,60757.0,0.02530609]
[1723250513153,0.000832,60758.0,60757.0,0.01730609]
[1723250513365,0.000832,60758.0,60757.0,0.02630609]
[1723250513366,0.001832,60758.0,60757.0,0.02630609]
[1723250513555,0.001832,60758.0,60757.0,0.02830609]
[1723250513708,0.000832,60758.0,60757.0,0.01930609]
[1723250514193,0.001832,60758.0,60757.0,0.01930609]
[1723250514400,0.16537676,60758.0,60757.0,0.01930609]
[1723250514599,0.00078976,60758.0,60757.0,0.01730609]
[1723250514801,0.16637676,60758.0,60757.0,0.03330609]
[1723250515014,0.164587,60758.0,60757.0,0.03330609]
[1723250515222,0.164582,60760.0,60757.0,0.03330609]
[1723250515438,0.164584,60759.0,60758.0,0.02991991]
[1723250515656,0.493753,60759.0,60758.0,0.02991991]
[1723250515859,0.164587,60758.0,60757.0,0.03330609]
[1723250516055,0.329169,60759.0,60757.0,0.03330609]
[1723250516056,0.164584,60759.0,60757.0,0.02630609]
[1723250516336,0.164584,60759.0,60757.0,0.01830609]
[1723250516572,0.09678976,60761.0,60757.0,0.01830609]
[1723250516573,0.357987,60758.0,60757.0,0.004]
[1723250516770,1.18014992,60758.0,60757.0,0.003]
[1723250516975,0.164612,60749.0,60743.0,0.1013]
[1723250517183,0.164613,60749.0,60743.0,0.265925]
[1723250517373,0.164622,60745.0,60744.0,0.0595189]
[1723250517595,0.329196,60754.0,60743.0,0.1013]
[1723250517596,0.329236,60747.0,60743.0,0.1013]
[1723250517801,0.164623,60745.0,60743.0,0.1013]
[1723250518037,0.164623,60745.0,60738.0,0.329281]
[1723250518038,0.329236,60747.0,60737.0,0.1013]
[1723250518164,0.164641,60738.0,60737.0,0.1013]
[1723250518361,0.593924,60738.0,60737.0,0.1013]
[1723250518569,0.593924,60738.0,60737.0,0.16825925]
[1723250519821,0.264641,60738.0,60737.0,0.16825925]
[1723250520019,0.164641,60738.0,60737.0,0.16925925]
[1723250520585,0.164641,60738.0,60737.0,0.17325925]
[1723250520799,0.164641,60738.0,60737.0,0.17225925]
[1723250520924,0.329272,60740.0,60737.0,0.16825925]
[1723250521121,0.1039,60751.0,60738.0,0.08184646]
[1723250521327,0.1039,60757.0,60738.0,0.08184646]
[1723250521528,0.164618,60747.0,60742.0,0.164629]
[1723250521734,0.164618,60747.0,60738.0,0.08184646]
[1723250521735,0.1,60746.0,60743.0,0.164627]
[1723250521950,0.1,60746.0,60744.0,0.0164627]
[1723250522802,0.164613,60749.0,60745.0,0.1082]
[1723250523025,0.1,60748.0,60745.0,0.272822]
[1723250523219,0.1,60748.0,60746.0,0.07057447]
[1723250523417,0.264615,60748.0,60746.0,0.07057447]
[1723250523618,0.329234,60747.0,60745.0,0.1082]
[1723250523857,0.1,60748.0,60737.0,0.1102]
[1723250524071,0.493858,60746.0,60745.0,0.001]
[1723250524234,0.493858,60746.0,60737.0,0.1102]
[1723250524235,0.164639,60739.0,60737.0,0.1102]
[1723250524558,0.16381492,60739.0,60730.0,0.2616163]
[1723250524763,0.164653,60734.0,60730.0,0.164661]
[1723250524961,0.164644,60737.0,60729.0,0.3302462]
[1723250525170,0.0888,60742.0,60729.0,0.3302462]
[1723250525171,0.0888,60742.0,60731.0,0.08184646]
[1723250525373,0.0888,60742.0,60737.0,0.164643]
[1723250525374,0.164631,60742.0,60737.0,0.164643]
[1723250525600,0.1,60741.0,60738.0,0.16464]
[1723250525802,0.1,60741.0,60732.0,0.02466166]
[1723250525803,0.164655,60733.0,60732.0,0.02466166]
[1723250526007,0.593965,60733.0,60732.0,0.02466166]
[1723250526213,0.329281,60739.0,60730.0,0.08184646]
[1723250526336,0.1,60738.0,60731.0,0.00329267]
[1723250526536,0.1,60738.0,60736.0,0.164645]
[1723250527146,0.329254,60744.0,60731.0,0.1102]
[1723250527343,0.164634,60741.0,60737.0,0.164643]
[1723250527545,0.1,60740.0,60737.0,0.164643]
[1723250527770,0.1,60740.0,60738.0,0.16464]
[1723250527971,0.1,60740.0,60734.0,0.329304]
[1723250527972,0.1,60740.0,60736.0,0.329291]
[1723250528178,0.1,60740.0,60738.0,0.16464]
[1723250528404,0.1,60740.0,60739.0,0.0823235]
[1723250528906,0.1,60743.0,60742.0,0.16463]
[1723250529151,0.002,60744.0,60743.0,0.493884]
[1723250529574,0.002,60744.0,60743.0,0.82314]
[1723250529777,0.164603,60752.0,60748.0,0.164613]
[1723250529949,0.329196,60754.0,60749.0,0.03585144]
[1723250530161,0.164604,60752.0,60747.0,0.164616]
[1723250530364,0.089632,60759.0,60751.0,0.164605]
[1723250530365,0.164596,60755.0,60751.0,0.164605]
[1723250530573,0.0090724,60757.0,60748.0,0.329228]
[1723250530785,0.089632,60759.0,60752.0,0.1082]
[1723250531005,0.000832,60759.0,60758.0,0.164587]
[1723250531210,0.000832,60759.0,60752.0,0.1082]
[1723250531418,0.329177,60758.0,60752.0,0.1082]
[1723250531624,0.329177,60758.0,60753.0,0.01493075]
[1723250531625,0.493794,60754.0,60753.0,0.01493075]
[1723250531825,0.164601,60753.0,60743.0,0.1102]
[1723250532039,0.164601,60753.0,60745.0,0.329243]
[1723250532266,0.168597,60755.0,60745.0,0.329243]
[1723250532470,0.164599,60754.0,60752.0,0.001]
[1723250532669,0.004,60755.0,60752.0,0.001]
[1723250532670,0.1646,60753.0,60752.0,0.001]
[1723250532808,0.329203,60753.0,60746.0,0.164618]
[1723250533016,0.493814,60752.0,60747.0,0.164617]
[1723250533243,0.329218,60750.0,60743.0,0.1082]
[1723250533444,0.329214,60751.0,60743.0,0.272827]
[1723250533695,0.164618,60747.0,60743.0,0.272827]
[1723250533893,0.164621,60746.0,60743.0,0.1082]
[1723250534049,0.329229,60748.0,60743.0,0.1082]
[1723250534248,0.16462,60746.0,60743.0,0.1082]
[1723250534495,0.164624,60745.0,60743.0,0.1082]
[1723250534824,0.493869,60745.0,60744.0,0.06764675]
[1723250535008,0.329237,60747.0,60743.0,0.1082]
[1723250535009,0.164625,60744.0,60743.0,0.1082]
[1723250535148,0.164622,60746.0,60743.0,0.1082]
[1723250535348,0.164623,60745.0,60743.0,0.1082]
[1723250535550,0.329237,60747.0,60739.0,0.164636]
[1723250535750,0.329248,60745.0,60739.0,0.164636]
[1723250535978,0.164626,60744.0,60743.0,0.005]
[1723250536373,0.493876,60744.0,60743.0,0.011]
[1723250536573,0.493876,60744.0,60743.0,0.006]
[1723250536775,0.164628,60743.0,60739.0,0.164636]
[1723250537018,0.164628,60743.0,60740.0,0.09518655]
[1723250537851,0.0888,60749.0,60739.0,0.005]
[1723250537852,0.164636,60740.0,60739.0,0.005]
[1723250538035,1.31626692,60740.0,60739.0,0.014]
[1723250538278,1.65552144,60740.0,60739.0,0.014]
[1723250538463,1.75942144,60740.0,60739.0,0.009]
[1723250539017,1.58852535,60740.0,60739.0,0.009]
[1723250539216,1.58852535,60740.0,60732.0,0.40363654]
[1723250539217,0.823207,60738.0,60732.0,0.40363654]
[1723250539416,0.923207,60738.0,60732.0,0.40363654]
[1723250539669,0.99156663,60738.0,60732.0,0.40363654]
[1723250539878,1.67261585,60738.0,60732.0,0.40363654]
[1723250540073,1.74098022,60738.0,60732.0,0.40363654]
[1723250540487,1.57006929,60738.0,60732.0,0.40363654]
[1723250540702,1.57006929,60738.0,60737.0,0.0029152]
[1723250541115,1.74097142,60738.0,60737.0,0.0029152]
[1723250541523,1.74097525,60738.0,60737.0,0.0029152]
[1723250542340,1.75012711,60738.0,60737.0,0.0029152]
[1723250543321,1.57922115,60738.0,60737.0,0.0029152]
[1723250543562,1.75012544,60738.0,60737.0,0.0029152]
[1723250544540,0.823315,60730.0,60729.0,0.0009152]
[1723250544740,1.41813279,60730.0,60729.0,0.0009152]
[1723250544940,2.32354055,60730.0,60729.0,0.0009152]
[1723250545188,2.32335002,60730.0,60729.0,0.0009152]
[1723250545389,2.31354055,60730.0,60729.0,0.0009152]
[1723250545716,2.31354055,60730.0,60729.0,0.0099152]
[1723250546336,2.31854055,60730.0,60729.0,0.0009152]
[1723250546539,2.31954055,60730.0,60729.0,0.0019152]
[1723250546719,2.32296899,60730.0,60729.0,0.0009152]
[1723250546850,2.32301166,60730.0,60729.0,0.0009152]
[1723250547048,2.32301166,60730.0,60729.0,0.0019152]
[1723250547049,2.34581853,60730.0,60729.0,0.0019152]
[1723250547514,2.33601166,60730.0,60729.0,0.0019152]
[1723250548121,2.33701166,60730.0,60729.0,0.0029152]
[1723250548372,2.33601166,60730.0,60729.0,0.0019152]
[1723250548759,2.32401285,60730.0,60729.0,0.0019152]
[1723250548966,2.32301285,60730.0,60729.0,0.0019152]
[1723250549169,2.33401285,60730.0,60729.0,0.0019152]
[1723250549338,2.33501285,60730.0,60729.0,0.0029152]
[1723250549804,2.19724874,60730.0,60729.0,0.0019152]
[1723250549961,2.33501528,60730.0,60729.0,0.0029152]
[1723250550160,1.89938928,60730.0,60729.0,0.0029152]
[1723250550360,1.01312668,60730.0,60729.0,0.0029152]
[1723250550584,1.27406944,60730.0,60729.0,0.0029152]
[1723250550749,1.34244421,60730.0,60729.0,0.0029152]
[1723250550942,1.34244294,60730.0,60729.0,0.0029152]
[1723250551214,1.27406944,60730.0,60729.0,0.0029152]
[1723250552041,1.27406944,60730.0,60729.0,0.0009152]
[1723250552042,1.26206944,60730.0,60729.0,0.0009152]
[1723250552244,1.26906944,60730.0,60729.0,0.0029152]
[1723250552424,1.26806944,60730.0,60729.0,0.0019152]
[1723250552875,1.26906944,60730.0,60729.0,0.0029152]
[1723250553496,1.33744379,60730.0,60729.0,0.0029152]
[1723250553928,2.07062916,60730.0,60729.0,0.0029152]
[1723250554157,2.32697228,60730.0,60729.0,0.0029152]
[1723250554388,2.19323649,60730.0,60729.0,0.0029152]
[1723250554602,2.19323297,60730.0,60729.0,0.0029152]
[1723250555008,1.17906605,60730.0,60729.0,0.0029152]
[1723250555208,0.57879557,60730.0,60729.0,0.0029152]
[1723250555407,0.51041744,60730.0,60729.0,0.0029152]
[1723250555670,0.007,60730.0,60729.0,0.02230072]
[1723250555872,0.171663,60730.0,60729.0,0.02230072]
[1723250556247,0.500989,60730.0,60729.0,0.02230072]
[1723250556631,0.600989,60730.0,60729.0,0.02230072]
[1723250557033,0.930315,60730.0,60729.0,0.0029152]
[1723250557485,0.271663,60730.0,60729.0,0.0029152]
[1723250558089,0.106,60730.0,60729.0,0.0019152]
[1723250558506,0.271663,60730.0,60729.0,0.0019152]
[1723250558720,0.593989,60730.0,60729.0,0.0009152]
[1723250558939,0.596989,60730.0,60729.0,0.02010072]
[1723250559561,0.593989,60730.0,60729.0,0.02010072]
[1723250559766,0.593989,60730.0,60729.0,0.02210072]
[1723250560445,0.593989,60730.0,60729.0,0.02010072]
[1723250560587,0.593989,60730.0,60729.0,0.02210072]
[1723250561196,0.923315,60730.0,60729.0,0.0029152]
[1723250561756,0.924315,60730.0,60729.0,0.0029152]
[1723250561913,0.594989,60730.0,60729.0,0.0009152]
[1723250562116,0.593989,60730.0,60729.0,0.0009152]
[1723250562319,0.595989,60730.0,60729.0,0.0009152]
[1723250562535,0.595989,60730.0,60729.0,0.01155072]
[1723250562536,0.924315,60730.0,60729.0,0.01155072]
[1723250562734,0.923315,60730.0,60729.0,0.0009152]
[1723250563570,0.925315,60730.0,60729.0,0.0009152]
[1723250564849,0.924315,60730.0,60729.0,0.0009152]
[1723250565052,0.923315,60730.0,60729.0,0.0009152]
[1723250565434,0.924315,60730.0,60729.0,0.0009152]
[1723250565644,0.925315,60730.0,60729.0,0.0009152]
[1723250565816,0.924315,60730.0,60729.0,0.0009152]
[1723250566413,0.99168269,60730.0,60729.0,0.0009152]
[1723250566822,0.99268269,60730.0,60729.0,0.0009152]
[1723250567904,1.16360289,60730.0,60729.0,0.0009152]
[1723250568171,0.99268269,60730.0,60729.0,0.0009152]
[1723250568324,0.99268269,60730.0,60729.0,0.0019152]
[1723250568325,1.16360328,60730.0,60729.0,0.0019152]
[1723250568727,1.69837682,60730.0,60729.0,0.0019152]
[1723250568931,1.98579474,60730.0,60729.0,0.0019152]
[1723250569137,2.33492935,60730.0,60729.0,0.0019152]
[1723250569315,1.42865834,60730.0,60728.0,4e-05]
[1723250569521,2.29517919,60729.0,60728.0,4e-05]
[1723250569713,0.49411,60715.0,60714.0,0.0009152]
[1723250569926,1.16280626,60715.0,60714.0,0.0009152]
[1723250570141,0.83339926,60715.0,60714.0,0.0009152]
[1723250570335,0.66247836,60715.0,60714.0,0.0009152]
[1723250570588,0.99188536,60715.0,60714.0,0.0009152]
[1723250570991,1.23800028,60715.0,60714.0,0.0009152]
[1723250571189,0.66247836,60715.0,60714.0,0.0009152]
[1723250571592,0.66249457,60715.0,60714.0,0.0009152]
[1723250571835,0.99190157,60715.0,60714.0,0.0009152]
[1723250572188,0.66649457,60715.0,60714.0,0.0009152]
[1723250572803,0.66549457,60715.0,60714.0,0.0009152]
[1723250573023,0.66249457,60715.0,60714.0,0.0019152]
[1723250573429,0.99290157,60715.0,60714.0,0.0019152]
[1723250573644,0.89290157,60715.0,60714.0,0.0019152]
[1723250573853,0.56349457,60715.0,60714.0,0.0019152]
[1723250574230,0.89290157,60715.0,60714.0,0.0019152]
[1723250574915,0.824517,60715.0,60714.0,0.0019152]
[1723250575286,1.36532899,60715.0,60714.0,0.0019152]
[1723250575445,0.82356,60712.0,60700.0,0.0003]
[1723250575643,0.576524,60701.0,60700.0,0.0003]
[1723250575847,1.30922651,60701.0,60700.0,0.0003]
[1723250576465,1.87457572,60701.0,60700.0,0.0003]
[1723250576623,1.60930492,60701.0,60700.0,0.0003]
[1723250576987,1.675099,60696.0,60691.0,0.009252]
[1723250577139,2.31517749,60696.0,60691.0,0.009252]
[1723250577485,2.31519583,60696.0,60691.0,0.009252]
[1723250577899,2.31519583,60696.0,60676.0,0.009152]
[1723250577900,0.934035,60677.0,60676.0,0.009152]
[1723250578106,1.74929221,60677.0,60676.0,0.009152]
[1723250578334,2.17890621,60677.0,60676.0,0.009152]
[1723250578562,0.23324365,60677.0,60676.0,0.009152]
[1723250578751,0.00938397,60685.0,60676.0,0.113952]
[1723250578910,0.164804,60678.0,60677.0,0.01246432]
[1723250579113,0.49339092,60684.0,60677.0,0.01246432]
[1723250579287,0.164795,60682.0,60677.0,0.09431078]
[1723250579492,0.16381492,60684.0,60677.0,0.08931078]
[1723250579775,0.1,60683.0,60677.0,0.00746432]
[1723250579998,0.329603,60679.0,60678.0,0.01331075]
[1723250580228,0.164807,60677.0,60676.0,0.010152]
[1723250580428,0.164803,60679.0,60676.0,0.010152]
[1723250580598,0.164806,60678.0,60676.0,0.010152]
[1723250580938,0.494421,60677.0,60676.0,0.010152]
[1723250581127,0.494421,60677.0,60676.0,0.009152]
[1723250581523,0.495421,60677.0,60676.0,0.009152]
[1723250581694,0.1,60683.0,60676.0,0.009152]
[1723250581914,0.164803,60679.0,60676.0,0.009152]
[1723250582131,0.16906403,60687.0,60680.0,0.08184646]
[1723250582389,0.1886,60692.0,60681.0,0.00919985]
[1723250582590,0.16381492,60686.0,60676.0,0.010152]
[1723250582738,0.16381492,60686.0,60676.0,0.009152]
[1723250582952,0.006,60683.0,60676.0,0.010152]
[1723250583166,0.16381492,60682.0,60676.0,0.010152]
[1723250583383,0.164802,60679.0,60676.0,0.010152]
[1723250583602,0.329596,60681.0,60676.0,0.06987717]
[1723250583603,0.329594,60681.0,60676.0,0.06987717]
[1723250583822,0.494421,60677.0,60676.0,0.010152]
[1723250584033,0.98784992,60677.0,60676.0,0.010152]
[1723250584460,1.51046392,60677.0,60676.0,0.010152]
[1723250584676,1.61046392,60677.0,60676.0,0.010152]
[1723250584896,1.61046392,60677.0,60676.0,0.009152]
[1723250585337,2.11422762,60677.0,60676.0,0.010152]
[1723250585538,1.81967909,60677.0,60676.0,0.010152]
[1723250585815,1.65540548,60677.0,60676.0,0.009152]
[1723250586024,1.65540548,60677.0,60676.0,0.010152]
[1723250586025,1.55200548,60677.0,60676.0,0.010152]
[1723250586262,1.17744992,60677.0,60676.0,0.010152]
[1723250587499,1.55200548,60677.0,60676.0,0.010152]
[1723250587918,1.67640548,60677.0,60676.0,0.010152]
[1723250588091,1.68640548,60677.0,60676.0,0.010152]
[1723250588295,1.70940548,60677.0,60676.0,0.010152]
[1723250588561,2.08575162,60677.0,60676.0,0.010152]
[1723250589757,2.06575162,60677.0,60676.0,0.010152]
[1723250590128,2.08575162,60677.0,60676.0,0.010152]
[1723250590854,2.06575162,60677.0,60676.0,0.010152]
[1723250591195,1.59873762,60677.0,60676.0,0.010152]
[1723250591365,1.59873762,60677.0,60668.0,0.009152]
[1723250591366,1.153799,60669.0,60668.0,0.009152]
[1723250591570,1.686456,60669.0,60668.0,0.009152]
[1723250591740,2.05623116,60669.0,60668.0,0.009152]
[1723250591943,1.9783846,60669.0,60668.0,0.009152]
[1723250592144,1.6487276,60669.0,60668.0,0.009152]
[1723250592343,1.17655692,60669.0,60668.0,0.009152]
[1723250592551,1.17655692,60669.0,60668.0,0.010152]
[1723250592552,0.66529992,60669.0,60668.0,0.010152]
[1723250592907,0.007,60669.0,60668.0,0.0222172]
[1723250593138,0.0886,60684.0,60672.0,0.1105]